fUSD/lending_fUSD_20250804
["ID","MTS","AMOUNT","RATE_DAILY","PERIOD"]
[377196171,1754285441667,-500.0,0.00046973,10]
[377196172,1754285441679,-501.91916091,0.00046973,10]
[377196173,1754285441689,-150.0,0.00046979,7]
[377196174,1754285441699,-1688.55211338,0.0004699,2]
[377196175,1754285441711,-247631.45464206,0.00046998,120]
[377196176,1754285441721,-8740.4899712,0.00046999,120]
[377196177,1754285441731,-151.0,0.00046999,2]
[377196178,1754285441740,-290.90298831,0.00046999,2]
[377196179,1754285441750,-150.0,0.00046999,120]
[377196180,1754285441760,-5000.0,0.00046999,120]
[377196181,1754285441771,-151.0,0.00046999,61]
[377196182,1754285441780,-200.0,0.00046999,61]
[377196183,1754285441789,-300.0,0.00046999,61]
[377196184,1754285441801,-500.0,0.00046999,61]
[377196185,1754285441812,-151.0,0.00046999,61]
[377196186,1754285441821,-151.0,0.00046999,61]
[377196187,1754285441831,-207.4,0.00046999,61]
[377196188,1754285441840,-300.0,0.00046999,61]
[377196189,1754285441851,-151.0,0.00046999,61]
[377196190,1754285441860,-151.0,0.00046999,61]
[377196191,1754285441869,-300.0,0.00046999,61]
[377196192,1754285441879,-500.0,0.00046999,61]
[377196193,1754285441889,-151.0,0.00046999,61]
[377196194,1754285441899,-151.0,0.00046999,61]
[377196195,1754285441908,-500.0,0.00046999,61]
[377196196,1754285441918,-300.0,0.00046999,61]
[377196197,1754285441928,-500.0,0.00046999,61]
[377196198,1754285441937,-151.0,0.00046999,61]
[377196199,1754285441947,-151.0,0.00046999,61]
[377196200,1754285441956,-215.0738,0.00046999,61]
[377196201,1754285441966,-500.0,0.00046999,61]
[377196202,1754285441976,-500.0,0.00046999,61]
[377196203,1754285441985,-300.0,0.00046999,61]
[377196204,1754285441995,-151.0,0.00046999,61]
[377196205,1754285442005,-151.0,0.00046999,61]
[377196206,1754285442015,-223.0315306,0.00046999,61]
[377196207,1754285442025,-500.0,0.00046999,61]
[377196208,1754285442034,-500.0,0.00046999,61]
[377196209,1754285442044,-151.0,0.00046999,61]
[377196210,1754285442054,-151.0,0.00046999,61]
[377196211,1754285442064,-500.0,0.00046999,61]
[377196212,1754285442073,-231.28369723,0.00046999,61]
[377196213,1754285442082,-500.0,0.00046999,61]
[377196214,1754285442092,-500.0,0.00046999,61]
[377196215,1754285442101,-151.0,0.00046999,61]
[377196216,1754285442110,-171.2514499,0.00046999,61]
[377196217,1754285442119,-151.0,0.00046999,61]
[377196218,1754285442129,-500.0,0.00046999,61]
[377196219,1754285442138,-239.84119403,0.00046999,61]
[377196220,1754285442147,-500.0,0.00046999,61]
[377196221,1754285442156,-151.0,0.00046999,61]
[377196222,1754285442165,-500.0,0.00046999,61]
[377196223,1754285442175,-151.0,0.00046999,61]
[377196224,1754285442184,-500.0,0.00046999,61]
[377196225,1754285442194,-248.71531821,0.00046999,61]
[377196226,1754285442203,-500.0,0.00046999,61]
[377196227,1754285442212,-500.0,0.00046999,61]
[377196228,1754285442221,-151.0,0.00046999,61]
[377196229,1754285442231,-151.0,0.00046999,61]
[377196230,1754285442239,-500.0,0.00046999,61]
[377196231,1754285442248,-151.0,0.00046999,61]
[377196232,1754285442258,-168.74495425,0.00046999,61]
[377196233,1754285442267,-500.0,0.00046999,61]
[377196234,1754285442276,-500.0,0.00046999,61]
[377196235,1754285442286,-500.0,0.00046999,61]
[377196236,1754285442295,-151.0,0.00046999,61]
[377196237,1754285442305,-300.0,0.00046999,61]
[377196238,1754285442314,-500.0,0.00046999,61]
[377196239,1754285442323,-500.0,0.00046999,61]
[377196240,1754285442333,-500.0,0.00046999,61]
[377196241,1754285442342,-151.0,0.00046999,61]
[377196242,1754285442351,-500.0,0.00046999,61]
[377196243,1754285442361,-500.0,0.00046999,61]
[377196244,1754285442370,-500.0,0.00046999,61]
[377196245,1754285442379,-311.1,0.00046999,61]
[377196246,1754285442389,-500.0,0.00046999,61]
[377196247,1754285442398,-151.0,0.00046999,61]
[377196248,1754285442407,-500.0,0.00046999,61]
[377196249,1754285442417,-500.0,0.00046999,61]
[377196250,1754285442426,-590.71309864,0.00046999,61]
[377196251,1754285442435,-500.0,0.00046999,61]
[377196252,1754285442445,-151.0,0.00046999,61]
[377196253,1754285442454,-500.0,0.00046999,61]
[377196254,1754285442463,-500.0,0.00046999,61]
[377196255,1754285442472,-322.6107,0.00046999,61]
[377196256,1754285442482,-500.0,0.00046999,61]
[377196257,1754285442491,-151.0,0.00046999,61]
[377196258,1754285442503,-500.0,0.00046999,61]
[377196259,1754285442513,-500.0,0.00046999,61]
[377196260,1754285442524,-334.5472959,0.00046999,61]
[377196261,1754285442534,-500.0,0.00046999,61]
[377196262,1754285442544,-515.47910692,0.00046999,61]
[377196263,1754285442555,-500.0,0.00046999,61]
[377196264,1754285442567,-346.92554585,0.00046999,61]
[377196265,1754285442577,-500.0,0.00046999,61]
[377196266,1754285442587,-3888.0,0.00046999,61]
[377196267,1754285442598,-500.0,0.00046999,61]
[377196268,1754285442608,-359.76179104,0.00046999,61]
[377196269,1754285442617,-500.0,0.00046999,61]
[377196270,1754285442630,-4031.856,0.00046999,61]
[377196271,1754285442639,-500.0,0.00046999,61]
[377196272,1754285442651,-373.07297731,0.00046999,61]
[377196273,1754285442661,-500.0,0.00046999,61]
[377196274,1754285442674,-4181.034672,0.00046999,61]
[377196275,1754285442684,-500.0,0.00046999,61]
[377196276,1754285442695,-386.87667747,0.00046999,61]
[377196277,1754285442706,-4335.73295486,0.00046999,61]
[377196278,1754285442716,-500.0,0.00046999,61]
[377196279,1754285442726,-500.0,0.00046999,61]
[377196280,1754285442736,-500.0,0.00046999,61]
[377196281,1754285442745,-401.19111454,0.00046999,61]
[377196282,1754285442755,-257.91778498,0.00046999,61]
[377196283,1754285442764,-500.0,0.00046999,61]
[377196284,1754285442774,-4496.15507419,0.00046999,61]
[377196285,1754285442784,-500.0,0.00046999,61]
[377196286,1754285442794,-500.0,0.00046999,61]
[377196287,1754285442803,-267.46074303,0.00046999,61]
[377196288,1754285442813,-500.0,0.00046999,61]
[377196289,1754285442822,-4662.51281194,0.00046999,61]
[377196290,1754285442832,-500.0,0.00046999,61]
[377196291,1754285442842,-500.0,0.00046999,61]
[377196292,1754285442852,-277.35679052,0.00046999,61]
[377196293,1754285442862,-500.0,0.00046999,61]
[377196294,1754285442872,-500.0,0.00046999,61]
[377196295,1754285442881,-4835.02578598,0.00046999,61]
[377196296,1754285442891,-500.0,0.00046999,61]
[377196298,1754285442900,-301.67113929,0.00046999,61]
[377196299,1754285442910,-500.0,0.00046999,61]
[377196300,1754285442919,-500.0,0.00046999,61]
[377196301,1754285442928,-5013.92174006,0.00046999,61]
[377196302,1754285442938,-500.0,0.00046999,61]
[377196303,1754285442947,-151.0,0.00046999,61]
[377196304,1754285442957,-300.0,0.00046999,61]
[377196305,1754285442966,-500.0,0.00046999,61]
[377196306,1754285442976,-500.0,0.00046999,61]
[377196307,1754285442985,-151.0,0.00046999,61]
[377196308,1754285442994,-157.55548253,0.00046999,61]
[377196309,1754285443004,-5199.43684444,0.00046999,61]
[377196310,1754285443013,-500.0,0.00046999,61]
[377196311,1754285443023,-500.0,0.00046999,61]
[377196312,1754285443032,-151.0,0.00046999,61]
[377196313,1754285443042,-5391.81600769,0.00046999,61]
[377196314,1754285443052,-500.0,0.00046999,61]
[377196315,1754285443063,-500.0,0.00046999,61]
[377196316,1754285443072,-2015.32566432,0.00046999,61]
[377196317,1754285443082,-500.0,0.00046999,61]
[377196318,1754285443091,-151.0,0.00046999,61]
[377196319,1754285443101,-500.0,0.00046999,61]
[377196320,1754285443110,-500.0,0.00046999,61]
[377196321,1754285443120,-300.0,0.00046999,61]
[377196322,1754285443129,-151.0,0.00046999,61]
[377196323,1754285443138,-500.0,0.00046999,61]
[377196324,1754285443147,-500.0,0.00046999,61]
[377196325,1754285443156,-300.0,0.00046999,61]
[377196326,1754285443165,-151.0,0.00046999,61]
[377196327,1754285443174,-500.0,0.00046999,61]
[377196328,1754285443183,-500.0,0.00046999,61]
[377196329,1754285443193,-300.0,0.00046999,61]
[377196330,1754285443202,-151.0,0.00046999,61]
[377196331,1754285443212,-151.0,0.00046999,61]
[377196332,1754285443221,-500.0,0.00046999,61]
[377196333,1754285443231,-500.0,0.00046999,61]
[377196334,1754285443240,-300.0,0.00046999,61]
[377196335,1754285443249,-156.587,0.00046999,61]
[377196336,1754285443259,-151.0,0.00046999,61]
[377196337,1754285443269,-500.0,0.00046999,61]
[377196338,1754285443278,-300.0,0.00046999,61]
[377196339,1754285443287,-212.38697808,0.00046999,61]
[377196340,1754285443298,-151.0,0.00046999,61]
[377196341,1754285443307,-300.0,0.00046999,61]
[377196342,1754285443316,-162.380719,0.00046999,61]
[377196343,1754285443326,-500.0,0.00046999,61]
[377196344,1754285443335,-151.0,0.00046999,61]
[377196345,1754285443345,-300.0,0.00046999,61]
[377196346,1754285443355,-168.3888056,0.00046999,61]
[377196347,1754285443364,-500.0,0.00046999,61]
[377196348,1754285443373,-151.0,0.00046999,61]
[377196349,1754285443382,-300.0,0.00046999,61]
[377196350,1754285443391,-174.61919141,0.00046999,61]
[377196351,1754285443401,-500.0,0.00046999,61]
[377196352,1754285443410,-151.0,0.00046999,61]
[377196353,1754285443419,-181.08010149,0.00046999,61]
[377196354,1754285443428,-151.0,0.00046999,61]
[377196355,1754285443438,-300.0,0.00046999,61]
[377196356,1754285443447,-500.0,0.00046999,61]
[377196357,1754285443456,-188.52435647,0.00046999,61]
[377196358,1754285443465,-151.0,0.00046999,61]
[377196359,1754285443474,-300.0,0.00046999,61]
[377196360,1754285443483,-500.0,0.00046999,61]
[377196361,1754285443492,-151.0,0.00046999,61]
[377196362,1754285443501,-300.0,0.00046999,61]
[377196363,1754285443510,-500.0,0.00046999,61]
[377196364,1754285443519,-151.0,0.00046999,61]
[377196365,1754285443528,-300.0,0.00046999,61]
[377196366,1754285443538,-151.0,0.00046999,61]
[377196367,1754285443547,-300.0,0.00046999,61]
[377196368,1754285443556,-200.4692385,0.00046999,61]
[377196369,1754285443567,-151.0,0.00046999,61]
[377196370,1754285443577,-300.0,0.00046999,61]
[377196371,1754285443588,-151.0,0.00046999,61]
[377196372,1754285443599,-151.0,0.00046999,61]
[377196373,1754285443609,-300.0,0.00046999,61]
[377196374,1754285443619,-600.0,0.00046999,61]
[377196375,1754285443635,-151.0,0.00046999,61]
[377196376,1754285443646,-300.0,0.00046999,61]
[377196377,1754285443656,-600.0,0.00046999,61]
[377196378,1754285443667,-300.0,0.00046999,61]
[377196379,1754285443678,-600.0,0.00046999,61]
[377196380,1754285443691,-300.0,0.00046999,61]
[377196381,1754285443701,-300.0,0.00046999,61]
[377196382,1754285443711,-600.0,0.00046999,61]
[377196383,1754285443721,-600.0,0.00046999,61]
[377196384,1754285443730,-300.0,0.00046999,61]
[377196385,1754285443739,-307.08230604,0.00046999,61]
[377196386,1754285443749,-500.0,0.00046999,61]
[377196387,1754285443758,-500.0,0.00046999,61]
[377196388,1754285443768,-500.0,0.00046999,61]
[377196389,1754285443777,-500.0,0.00046999,61]
[377196391,1754285443786,-500.0,0.00046999,61]
[377196392,1754285443797,-500.0,0.00046999,61]
[377196393,1754285443808,-500.0,0.00046999,61]
[377196394,1754285443817,-500.0,0.00046999,61]
[377196396,1754285443826,-500.0,0.00046999,61]
[377196397,1754285443835,-160.0,0.00046999,61]
[377196399,1754285443845,-160.0,0.00046999,61]
[377196400,1754285443854,-160.0,0.00046999,61]
[377196401,1754285443864,-160.0,0.00046999,61]
[377196402,1754285443873,-160.0,0.00046999,61]
[377196403,1754285443883,-160.0,0.00046999,61]
[377196404,1754285443893,-160.0,0.00046999,61]
[377196405,1754285443902,-160.0,0.00046999,61]
[377196406,1754285443911,-160.0,0.00046999,61]
[377196407,1754285443921,-2784581.62543675,0.00047,10]
[377196408,1754285443934,-250.0,0.00047,30]
[377196409,1754285443947,-250.0,0.00047,30]
[377196410,1754285443957,-151.0,0.00047,14]
[377196411,1754285443969,-151.0,0.00047,14]
[377196412,1754285443978,-151.0,0.00047,14]
[377196413,1754285443988,-151.0,0.00047,14]
[377196414,1754285443998,-151.0,0.00047,14]
[377196415,1754285444008,-1213.0,0.00047,14]
[377196416,1754285444017,-151.0,0.00047,14]
[377196417,1754285444027,-1213.0,0.00047,14]
[377196418,1754285444036,-151.0,0.00047,14]
[377196419,1754285444046,-1213.0,0.00047,14]
[377196420,1754285444055,-151.0,0.00047,14]
[377196421,1754285444065,-151.0,0.00047,14]
[377196422,1754285444074,-151.0,0.00047,14]
[377196423,1754285444085,-154.73384471,0.00047,14]
[377196424,1754285444095,-1213.0,0.00047,14]
[377196425,1754285444106,-151.0,0.00047,14]
[377196426,1754285444115,-1213.0,0.00047,14]
[377196427,1754285444124,-151.0,0.00047,14]
[377196428,1754285444134,-1213.0,0.00047,14]
[377196429,1754285444143,-153.73788876,0.00047,14]
[377196430,1754285444152,-1213.0,0.00047,14]
[377196431,1754285444161,-1213.0,0.00047,14]
[377196432,1754285444171,-331.47460071,0.00047,14]
[377196433,1754285444181,-152.7895733,0.00047,120]
[377196434,1754285444191,-514.0,0.00047028,16]
[377196435,1754285444201,-150.0,0.00047029,120]
[377196436,1754285444211,-1000.0,0.00047034,14]
[377196437,1754285444220,-150.0,0.00047043,7]
[377196438,1754285444230,-1000.0,0.0004706,14]
[377196439,1754285444239,-500.0,0.00047073,120]
[377196440,1754285444249,-150.0,0.00047074,7]
[377196441,1754285444258,-905.21573796,0.00047092,120]
[377196442,1754285444267,-1000.0,0.00047117,14]
[377196443,1754285444278,-13054.47176489,0.0004722,2]
[377196444,1754285444290,-1484.26913203,0.00047234,2]
[377196445,1754285444300,-360934.26362089,0.00047273,31]
[377196446,1754285444311,-5000.0,0.00047273,120]
[377196447,1754285444322,-150.0,0.00047286,14]
[377196448,1754285444332,-2039.927,0.0004732,2]
[377196449,1754285444342,-1305.688,0.0004732,2]
[377196450,1754285444352,-601.59,0.0004732,2]
[377196451,1754285444363,-568.64,0.0004732,2]
[377196452,1754285444374,-1708.224,0.0004732,2]
[377196453,1754285444385,-1169.0,0.0004732,2]
[377196454,1754285444394,-4137.0,0.0004732,2]
[377196455,1754285444404,-6070.0,0.0004732,2]
[377196456,1754285444414,-812.0,0.0004732,2]
[377196457,1754285444424,-500.0,0.00047347,120]
[377196458,1754285444434,-452.28,0.00047353,14]
[377196459,1754285444443,-170.18768608,0.00047408,15]
[377196460,1754285444453,-1001.2743672,0.00047421,10]
[377196461,1754285444462,-503.93393116,0.00047421,10]
[377196462,1754285444472,-1067.75311442,0.00047421,10]
[377196463,1754285444484,-452.28,0.00047433,14]
[377196464,1754285444496,-1555.67726897,0.00047486,2]
[377196465,1754285444505,-150.0,0.00047498,14]
[377196466,1754285444514,-963.22546012,0.000475,30]
[377196467,1754285444524,-766.0257,0.0004751,37]
[377196468,1754285444534,-452.28,0.00047514,14]
[377196469,1754285444543,-1000.0,0.00047521,10]
[377196470,1754285444554,-1000.0,0.00047521,10]
[377196471,1754285444565,-289.0,0.00047521,7]
[377196472,1754285444575,-150.0,0.00047534,7]
[377196473,1754285444585,-5000.0,0.00047547,120]
[377196474,1754285444595,-303.93,0.00047572,120]
[377196475,1754285444604,-150.0,0.00047584,7]
[377196476,1754285444614,-150.0,0.00047594,7]
[377196477,1754285444624,-1025.83590313,0.00047595,14]
[377196478,1754285444637,-500.0,0.00047621,120]
[377196479,1754285444647,-150.0,0.00047653,7]
[377196480,1754285444656,-150.0,0.00047663,7]
[377196481,1754285444666,-301.33,0.00047671,30]
[377196482,1754285444677,-196.0,0.00047682,90]
[377196483,1754285444688,-1000.0,0.00047682,14]
[377196484,1754285444698,-2000.0,0.000477,120]
[377196485,1754285444710,-1731.0,0.000477,120]
[377196486,1754285444720,-1200.0,0.000477,17]
[377196487,1754285444731,-987.84,0.000477,47]
[377196488,1754285444742,-1070.0,0.000477,7]
[377196489,1754285444752,-1000.0,0.00047711,14]
[377196490,1754285444762,-150.0,0.00047729,7]
[377196491,1754285444773,-1000.0,0.00047736,14]
[377196492,1754285444783,-1627.08540591,0.00047738,2]
[377196493,1754285444794,-1000.0,0.00047749,14]
[377196494,1754285444804,-1000.0,0.0004775,2]
[377196495,1754285444814,-1094.8994,0.0004775,2]
[377196496,1754285444825,-1000.0,0.0004775,2]
[377196497,1754285444973,-1000.0,0.0004775,2]
[377196498,1754285444983,-1000.0,0.0004775,2]
[377196499,1754285444993,-1000.0,0.0004775,2]
[377196500,1754285445006,-1000.0,0.0004775,2]
[377196501,1754285445016,-1000.0,0.0004775,2]
[377196502,1754285445026,-1000.0,0.0004775,2]
[377196503,1754285445036,-1000.0,0.0004775,2]
[377196504,1754285445048,-1000.0,0.0004775,2]
[377196505,1754285445058,-1000.0,0.0004775,2]
[377196506,1754285445069,-1000.0,0.0004775,2]
[377196507,1754285445079,-1000.0,0.0004775,2]
[377196508,1754285445089,-1000.0,0.0004775,2]
[377196509,1754285445100,-1000.0,0.0004775,2]
[377196510,1754285445110,-1000.0,0.0004775,2]
[377196511,1754285445120,-1000.0,0.0004775,2]
[377196512,1754285445130,-1000.0,0.0004775,2]
[377196513,1754285445139,-1000.0,0.0004775,2]
[377196514,1754285445150,-1126.3912,0.0004775,2]
[377196515,1754285445161,-150.0,0.00047755,7]
[377196516,1754285445171,-154.06404217,0.00047759,14]
[377196517,1754285445180,-1000.0,0.00047774,14]
[377196518,1754285445191,-1000.0,0.00047777,120]
[377196519,1754285445200,-1000.0,0.00047777,120]
[377196520,1754285445210,-523.70208924,0.00047777,120]
[377196521,1754285445220,-150.0,0.00047793,7]
[377196522,1754285445231,-1200.0,0.000478,17]
[377196523,1754285445243,-5000.0,0.00047821,120]
[377196524,1754285445253,-150.0,0.00047831,14]
[377196525,1754285445264,-160.0,0.00047841,2]
[377196526,1754285445273,-457.2201239,0.00047841,2]
[377196527,1754285445283,-150.0,0.00047856,7]
[377196528,1754285445292,-150.0,0.00047856,7]
[377196529,1754285445302,-150.0,0.00047867,7]
[377196530,1754285445312,-787.44291558,0.0004788,100]
[377196531,1754285445321,-500.0,0.00047895,120]
[377196532,1754285445331,-2007.6,0.000479,120]
[377196533,1754285445340,-150.06,0.000479,120]
[377196534,1754285445349,-202.18270393,0.000479,120]
[377196535,1754285445359,-1523.26742206,0.000479,15]
[377196536,1754285445369,-2610.81153051,0.000479,120]
[377196537,1754285445378,-170.18768608,0.000479,15]
[377196538,1754285445387,-1200.0,0.000479,17]
[377196539,1754285445397,-150.0,0.000479,7]
[377196540,1754285445406,-21014.3546,0.0004792,120]
[377196541,1754285445415,-150.0,0.00047922,14]
[377196542,1754285445425,-500.0,0.00047945,120]
[377196543,1754285445434,-500.0,0.00047945,120]
[377196544,1754285445443,-500.0,0.00047945,120]
[377196545,1754285445453,-500.0,0.00047945,120]
[377196546,1754285445462,-500.0,0.00047945,120]
[377196547,1754285445472,-500.0,0.00047945,120]
[377196548,1754285445481,-500.0,0.00047945,120]
[377196549,1754285445491,-500.0,0.00047945,120]
[377196550,1754285445501,-500.0,0.00047945,120]
[377196551,1754285445510,-500.0,0.00047945,120]
[377196552,1754285445519,-500.0,0.00047945,120]
[377196553,1754285445528,-500.0,0.00047945,120]
[377196554,1754285445538,-500.0,0.00047945,120]
[377196555,1754285445547,-500.0,0.00047945,120]
[377196556,1754285445556,-500.0,0.00047945,120]
[377196557,1754285445567,-500.0,0.00047945,120]
[377196558,1754285445576,-500.0,0.00047945,120]
[377196559,1754285445586,-500.0,0.00047945,120]
[377196560,1754285445595,-500.0,0.00047945,120]
[377196561,1754285445605,-222.00415134,0.00047945,120]
[377196562,1754285445614,-151.22011633,0.00047954,7]
[377196563,1754285445624,-1000.0,0.00047963,14]
[377196564,1754285445636,-90412.0,0.00047973,120]
[377196565,1754285445646,-151.0,0.00047973,14]
[377196566,1754285445655,-152.551878,0.00047973,14]
[377196567,1754285445665,-151.0,0.00047973,14]
[377196568,1754285445676,-151.0,0.00047973,14]
[377196569,1754285445686,-335.424605,0.00047973,14]
[377196570,1754285445696,-335.424605,0.00047973,14]
[377196571,1754285445707,-151.0,0.00047973,14]
[377196572,1754285445717,-151.0,0.00047973,14]
[377196573,1754285445728,-151.0,0.00047973,14]
[377196574,1754285445738,-151.0,0.00047973,14]
[377196575,1754285445748,-159.864983,0.00047973,14]
[377196576,1754285445757,-151.0,0.00047973,14]
[377196577,1754285445767,-151.0,0.00047973,14]
[377196578,1754285445776,-151.0,0.00047973,14]
[377196579,1754285445788,-151.0,0.00047973,14]
[377196580,1754285445798,-156.28,0.0004798,120]
[377196581,1754285445808,-1698.49354284,0.0004799,2]
[377196582,1754285445817,-150.0,0.0004799,7]
[377196583,1754285445827,-150.0,0.00047992,7]
[377196584,1754285445837,-151.0,0.00047993,14]
[377196585,1754285445846,-1213.0,0.00047993,14]
[377196586,1754285445856,-1213.0,0.00047993,14]
[377196587,1754285445866,-1213.0,0.00047993,14]
[377196588,1754285445875,-1213.0,0.00047993,14]
[377196589,1754285445885,-1213.0,0.00047993,14]
[377196590,1754285445895,-1213.0,0.00047993,14]
[377196591,1754285445904,-151.0,0.00047993,14]
[377196592,1754285445914,-1213.0,0.00047993,14]
[377196593,1754285445924,-151.0,0.00047993,14]
[377196594,1754285445933,-1213.0,0.00047993,14]
[377196595,1754285445943,-295.32244137,0.00047993,14]
[377196596,1754285445953,-155.0,0.00047993,14]
[377196597,1754285445962,-154.36244599,0.00047993,14]
[377196598,1754285445972,-153.24287061,0.00047993,14]
[377196599,1754285445983,-1000.0,0.00047997,90]
[377196600,1754285445992,-999.0,0.00047998,120]
[377196601,1754285446002,-156.06002494,0.00047999,30]
[377196602,1754285446012,-172.25933334,0.00048,120]
[377196603,1754285446021,-611787.68283642,0.00048,120]
[377196604,1754285446537,-150.0,0.000245,3]
[377196605,1754285446547,-300.0,0.0002674,3]
[377196606,1754285446556,-150.0,0.00044528,3]
[377196607,1754285446566,-431.94699814,0.00045796,15]
[377196608,1754285446575,-300.0,0.00046768,3]
[377196609,1754285446584,-172.61931634,0.000469,2]
[377196610,1754285446593,-286.93368552,0.0004732,61]
[377196613,1754285448108,-9094.4662179,0.00045241,30]
[377196614,1754285448118,-150.0,0.00046771,3]
[377196615,1754285448128,-150.0,0.00046998,61]
[377196616,1754285448138,-17895.05124735,0.0004732,61]
[377196617,1754285448149,-3360.0,0.0004732,2]
[377196618,1754285448158,-150.0,0.00047499,61]
[377196619,1754285448167,-150.0,0.00047684,7]
[377196620,1754285448177,-178.68155694,0.00047823,7]
[377196621,1754285448186,-150.0,0.00047893,7]
[377196622,1754285448196,-150.0,0.0004794,7]
[377196623,1754285448206,-1539432.08116463,0.00048,120]
[377196624,1754285449886,-172.88,0.00042506,30]
[377196625,1754285449896,-358.84,0.00042506,30]
[377196626,1754285449905,-784.05,0.00046027,30]
[377196627,1754285449915,-165.39,0.00046027,30]
[377196628,1754285449924,-431.94699814,0.00046147,15]
[377196629,1754285449934,-150.0,0.00046998,61]
[377196630,1754285449944,-156.829,0.0004732,2]
[377196631,1754285449955,-150.0,0.00047594,7]
[377196632,1754285449965,-150.0,0.00047723,7]
[377196633,1754285449975,-150.0,0.00047838,7]
[377196634,1754285449984,-150.0,0.00047864,7]
[377196635,1754285449994,-872.57727627,0.00048,120]
[377196636,1754285450029,-480.0,0.00048,120]
[377196637,1754285450041,-625.41272102,0.00048,120]
[377196658,1754285599655,154.98,0.00013699,2]
[377196671,1754286497381,154.98,0.00013699,2]
[377196681,1754286632471,-236.93760915,0.00027397,2]
[377196682,1754286632482,-68.7606359,0.00034247,2]
[377196683,1754286632527,-86.2193641,0.00034247,2]
[377196684,1754286632536,-271.37,0.0003719,7]
[377196685,1754286632546,-268.55,0.00040236,2]
[377196686,1754286632558,-153.71,0.0004113,30]
[377196687,1754286632569,-268.55,0.00041967,120]
[377196688,1754286632579,-516.0,0.00042765,10]
[377196689,1754286632589,-262.88035739,0.00043136,2]
[377196690,1754286632598,-150.0,0.000432,2]
[377196691,1754286632608,-426.79126746,0.00043452,2]
[377196692,1754286632618,-370.0,0.00043696,5]
[377196693,1754286632628,-268.55,0.00043697,120]
[377196694,1754286632639,-150.99,0.00043697,2]
[377196695,1754286632650,-5199.07,0.00043697,2]
[377196696,1754286632660,-9999.99,0.00043704,2]
[377196697,1754286632671,-500.55765937,0.00043704,2]
[377196698,1754286632681,-574.32405128,0.00043956,2]
[377196699,1754286632691,-909.0,0.00043999,5]
[377196700,1754286632700,-500.0,0.00044,120]
[377196701,1754286632710,-500.0,0.00044147,30]
[377196702,1754286632720,-648.09044319,0.00044208,2]
[377196703,1754286632730,-721.85683509,0.00044461,2]
[377196704,1754286632740,-1524.28025795,0.00044497,2]
[377196705,1754286632749,-795.623227,0.00044713,2]
[377196706,1754286632759,-516.0,0.00044919,10]
[377196707,1754286632769,-869.38961891,0.00044965,2]
[377196708,1754286632779,-586.44,0.00044969,3]
[377196709,1754286632789,-157.0,0.00045,30]
[377196710,1754286632799,-151.0,0.00045035,120]
[377196711,1754286632809,-250.0,0.0004518,120]
[377196712,1754286632819,-200.0,0.00045185,2]
[377196713,1754286632829,-943.15601082,0.00045217,2]
[377196714,1754286632839,-1275.87,0.00045218,2]
[377196715,1754286632850,-153.71,0.00045243,120]
[377196716,1754286632859,-257.48092199,0.00045254,2]
[377196717,1754286632869,-500.0,0.00045271,30]